[Event "FIDE WAC U2000 2021"]
[Site "Rhodes"]
[Date "2021.10.22"]
[Round "6.1"]
[White "Degrande, Marigje"]
[Black "Sultanbek, Zeinep"]
[Result "1/2-1/2"]
[ECO "C00"]
[WhiteElo "1889"]
[BlackElo "1883"]
[Annotator "NA"]
[PlyCount "40"]
[EventDate "2021.10.17"]
[EventType "swiss"]
[EventCountry "GRE"]
[SourceTitle "playchess.com"]
[Source "ChessBase"]
[SourceQuality "1"]
[TimeControl "5400+30"]

1. c4 {[%emt 0:00:03]} e6 {[%emt 0:01:56]} 2. e4 {[%emt 0:00:02]} d5 {[%emt 0:00:30]} 3. cxd5 {[%emt 0:00:06]} exd5 {[%emt 0:00:03]} 4. exd5 {[%emt 0:00:08]} Nf6 {[%emt 0:00:05]} 5. Bb5+ {[%emt 0:00:09]} Nbd7 {[%emt 0:00:12]} 6. Nc3 {[%emt 0:00:19]} Be7 {[%emt 0:00:14]} 7. Nf3 {[%emt 0:06:43]} O-O {[%emt 0:00:08]} 8. O-O {[%emt 0:00:17]} Nb6 {[%emt 0:00:06]} 9. h3 {[%emt 0:00:17]} Nbxd5 {[%emt 0:00:44]} 10. d4 {[%emt 0:00:17]} Bf5 {[%emt 0:00:52]} 11. Re1 {[%emt 0:03:57]} h6 {[%emt 0:04:20]} 12. a3 {[%emt 0:03:11]} c6 {[%emt 0:16:48]} 13. Bc4 {[%emt 0:02:44]} Be6 {[%emt 0:00:09]} 14. Bd3 {[%emt 0:07:39]} Qc7 {[%emt 0:00:46]} 15. Ne5 {[%emt 0:06:51]} Rad8 {[%emt 0:00:16]} 16. Qf3 {[%emt 0:12:56]} Rfe8 $11 {[%emt 0:07:22]} 17. Nxd5 {[%emt 0:05:44]} Bxd5 {[%emt 0:01:52]} 18. Qg3 {[%emt 0:00:31]} Nh5 {[%emt 0:00:12]} 19. Qg4 {[%emt 0:01:00]} Nf6 {[%emt 0:00:06]} 20. Qg3 {[%emt 0:01:06]} Nh5 {[%emt 0:00:05]} 1/2-1/2

[Event "FIDE WAC U2000 2021"]
[Site "Rhodes"]
[Date "2021.10.22"]
[Round "6.2"]
[White "Dogu, Hasim"]
[Black "Peter Anand, A."]
[Result "0-1"]
[ECO "D52"]
[WhiteElo "1852"]
[BlackElo "1787"]
[Annotator "NA"]
[PlyCount "102"]
[EventDate "2021.10.17"]
[EventType "swiss"]
[EventCountry "GRE"]
[SourceTitle "playchess.com"]
[Source "ChessBase"]
[SourceQuality "1"]
[TimeControl "5400+30"]

1. d4 {[%emt 0:00:25]} d5 {[%emt 0:00:09]} 2. c4 {[%emt 0:00:50]} c6 {[%emt 0:00:20]} 3. Nc3 {[%emt 0:02:08]} Nf6 {[%emt 0:00:07]} 4. Bg5 {[%emt 0:01:39]} e6 {[%emt 0:01:56]} 5. e3 {[%emt 0:02:16]} Nbd7 {[%emt 0:00:37]} 6. Nf3 {[%emt 0:00:40]} Qa5 {[%emt 0:00:18]} 7. Bxf6 {[%emt 0:04:09]} Nxf6 {[%emt 0:00:18]} 8. Bd3 {[%emt 0:09:07]} Ne4 {[%emt 0:09:00]} 9. Bxe4 {[%emt 0:03:18]} dxe4 {[%emt 0:01:22]} 10. Nd2 {[%emt 0:00:09]} Qg5 {[%emt 0:10:10]} 11. g3 {[%emt 0:11:06]} f5 {[%emt 0:00:29]} 12. h4 {[%emt 0:02:08]} Qf6 {[%emt 0:03:44]} 13. Qb3 {[%emt 0:02:22]} h5 {[%emt 0:03:46]} (13... Bd6 $14) 14. O-O-O {[%emt 0:04:46]} Bd6 {[%emt 0:01:43]} 15. c5 {[%emt 0:14:06]} Bc7 {[%emt 0:00:40]} 16. Rhg1 {[%emt 0:01:38]} b6 {[%emt 0:04:08]} 17. f3 {[%emt 0:10:25]} exf3 {[%emt 0:01:05]} 18. Nxf3 {[%emt 0:00:08]} O-O {[%emt 0:01:59]} 19. Ng5 $11 {[%emt 0:00:16]} ({White should try} 19. Qa3 $14) 19... bxc5 {[%emt 0:01:13]} 20. dxc5 {[%emt 0:00:34]} Be5 {[%emt 0:04:48]} 21. Rd3 {[%emt 0:02:03]} Qe7 {[%emt 0:08:06]} 22. Na4 {[%emt 0:11:01]} Bf6 {[%emt 0:06:17]} 23. Nf3 {[%emt 0:02:53]} Qc7 {[%emt 0:09:30]} 24. Rd6 {[%emt 0:03:44]} Be7 {[%emt 0:01:29]} 25. Rgd1 {[%emt 0:02:31]} Bf6 {[%emt 0:06:18]} 26. Nd4 {[%emt 0:01:01]} Bxd4 {[%emt 0:01:25]} 27. R1xd4 {[%emt 0:00:18]} Re8 {[%emt 0:01:09]} 28. Qd1 {[%emt 0:00:29]} e5 {[%emt 0:04:02]} 29. Qxh5 {[%emt 0:01:44]} Be6 {[%emt 0:01:58]} 30. Rd2 {[%emt 0:01:56]} Qa5 {[%emt 0:05:59]} 31. b3 {[%emt 0:01:39]} Rad8 {[%emt 0:03:53]} 32. Qd1 {[%emt 0:01:09]} Bd5 {[%emt 0:00:47]} 33. Rxd8 {[%emt 0:00:39]} Rxd8 {[%emt 0:00:19]} 34. Qc2 {[%emt 0:00:16]} Be4 {[%emt 0:00:41]} 35. Qc3 {[%emt 0:00:14]} Qc7 {[%emt 0:00:20]} 36. Nb2 {[%emt 0:00:30]} Rd5 {[%emt 0:00:55]} 37. Rxd5 {[%emt 0:01:10]} cxd5 {[%emt 0:00:01]} 38. b4 {[%emt 0:00:20]} f4 {[%emt 0:00:34]} 39. exf4 {[%emt 0:01:05]} exf4 {[%emt 0:00:01]} 40. gxf4 {[%emt 0:01:43]} Qxf4+ {[%emt 0:00:01]} 41. Qd2 {[%emt 0:00:58]} Qxh4 {[%emt 0:01:17]} 42. Nd1 {[%emt 0:00:24]} Bf3 {[%emt 0:02:15]} 43. Ne3 {[%emt 0:00:49]} Qf6 {[%emt 0:01:23]} 44. Kc2 {[%emt 0:00:50]} d4 {[%emt 0:01:21]} 45. Nc4 {[%emt 0:00:33]} Bd5 {[%emt 0:00:17]} 46. Nd6 {[%emt 0:00:40]} Bxa2 {[%emt 0:01:48]} 47. Kb2 {[%emt 0:00:11]} Bd5 {[%emt 0:00:23]} 48. Qe1 {[%emt 0:00:43]} d3+ {[%emt 0:00:51]} 49. Ka3 {[%emt 0:00:26]} d2 {[%emt 0:00:42]} 50. Qe8+ {[%emt 0:00:33]} Qf8 {[%emt 0:00:06]} 51. Qe2 {[%emt 0:00:25]} Qf3+ {[%emt 0:00:02]} 0-1

[Event "FIDE WAC U2000 2021"]
[Site "Rhodes"]
[Date "2021.10.22"]
[Round "6.3"]
[White "Hamad Bader"]
[Black "Tenuunbold, Battulga"]
[Result "1-0"]
[ECO "B23"]
[WhiteElo "1756"]
[BlackElo "1753"]
[Annotator "NA"]
[PlyCount "77"]
[EventDate "2021.10.17"]
[EventType "swiss"]
[EventCountry "GRE"]
[SourceTitle "playchess.com"]
[Source "ChessBase"]
[SourceQuality "1"]
[TimeControl "5400+30"]

1. e4 {[%emt 0:00:08]} c5 {[%emt 0:00:06]} 2. Nc3 {[%emt 0:00:08]} Nc6 {[%emt 0:00:05]} 3. f4 {[%emt 0:00:06]} g6 {[%emt 0:00:05]} 4. Nf3 {[%emt 0:00:05]} Bg7 {[%emt 0:00:09]} 5. Bb5 {[%emt 0:00:49]} Nd4 {[%emt 0:00:17]} 6. O-O {[%emt 0:00:13]} Nxb5 {[%emt 0:00:03]} 7. Nxb5 {[%emt 0:00:08]} d5 {[%emt 0:00:14]} 8. exd5 {[%emt 0:00:17]} a6 {[%emt 0:00:06]} 9. Nc3 {[%emt 0:00:07]} Nf6 {[%emt 0:00:14]} 10. d4 {[%emt 0:00:32]} Nxd5 {[%emt 0:00:13]} 11. dxc5 {[%emt 0:00:08]} Nxc3 {[%emt 0:00:18]} 12. Qxd8+ {[%emt 0:00:11]} Kxd8 {[%emt 0:00:03]} 13. bxc3 {[%emt 0:00:07]} Bxc3 {[%emt 0:00:23]} 14. Rb1 {[%emt 0:00:07]} Kc7 {[%emt 0:00:53]} 15. Rb3 {[%emt 0:00:07]} Bf6 {[%emt 0:00:54]} 16. Bd2 {[%emt 0:04:37]} Be6 {[%emt 0:09:45]} 17. Ba5+ {[%emt 0:01:15]} Kc8 {[%emt 0:00:07]} 18. Rb6 {[%emt 0:12:34]} Bd5 {[%emt 0:13:50]} 19. Rd1 {[%emt 0:08:48]} Be4 {[%emt 0:02:21]} 20. c3 {[%emt 0:21:27]} Kb8 {[%emt 0:37:51]} 21. Ne5 {[%emt 0:25:30]} Bxe5 {[%emt 0:02:03]} 22. fxe5 {[%emt 0:00:09]} Rc8 {[%emt 0:00:37]} 23. Rb4 {[%emt 0:00:17]} Bf5 {[%emt 0:01:33]} 24. Bb6 {[%emt 0:01:55]} a5 {[%emt 0:01:35]} 25. Rbd4 {[%emt 0:03:26]} a4 {[%emt 0:00:03]} 26. a3 {[%emt 0:00:15]} Rc6 {[%emt 0:01:43]} 27. Rd8+ {[%emt 0:01:11]} Bc8 {[%emt 0:00:04]} 28. Re8 {[%emt 0:01:26]} Ra6 {[%emt 0:01:36]} 29. Rdd8 {[%emt 0:03:41]} h5 {[%emt 0:04:37]} 30. Rxe7 {[%emt 0:00:56]} Raxb6 {[%emt 0:01:45]} 31. cxb6 {[%emt 0:00:07]} Rxb6 {[%emt 0:00:07]} 32. Rxf7 {[%emt 0:00:48]} Rc6 {[%emt 0:00:08]} 33. Rff8 {[%emt 0:00:23]} b5 {[%emt 0:00:22]} 34. e6 {[%emt 0:00:59]} Rxe6 {[%emt 0:00:37]} 35. Rxc8+ {[%emt 0:00:06]} Kb7 {[%emt 0:00:01]} 36. Rb8+ {[%emt 0:00:55]} Ka6 {[%emt 0:00:09]} 37. Kf2 {[%emt 0:01:00]} Rd6 {[%emt 0:00:05]} 38. Ke3 {[%emt 0:00:14]} Rd2 {[%emt 0:00:03]} 39. Rf6+ {[%emt 0:00:09]} 1-0

[Event "FIDE WAC U2000 2021"]
[Site "Rhodes"]
[Date "2021.10.22"]
[Round "6.4"]
[White "Sielicki, Tomasz"]
[Black "Ehab, Mohamed"]
[Result "1/2-1/2"]
[ECO "D10"]
[WhiteElo "1875"]
[BlackElo "1948"]
[Annotator "NA"]
[PlyCount "56"]
[EventDate "2021.10.17"]
[EventType "swiss"]
[EventCountry "GRE"]
[SourceTitle "playchess.com"]
[Source "ChessBase"]
[SourceQuality "1"]
[TimeControl "5400+30"]

1. d4 {[%emt 0:00:05]} d5 {[%emt 0:09:11]} 2. c4 {[%emt 0:00:14]} c6 {[%emt 0:00:05]} 3. cxd5 {[%emt 0:03:34]} cxd5 {[%emt 0:00:05]} 4. Nc3 {[%emt 0:00:05]} Nc6 {[%emt 0:00:15]} 5. e4 {[%emt 0:00:28]} Nf6 {[%emt 0:02:59]} 6. e5 {[%emt 0:05:08]} Ne4 {[%emt 0:03:41]} 7. Bd3 {[%emt 0:10:32]} Bf5 {[%emt 0:20:09]} 8. Nge2 {[%emt 0:04:02]} Nxc3 {[%emt 0:04:16]} 9. Nxc3 {[%emt 0:05:55]} Bxd3 {[%emt 0:00:05]} 10. Qxd3 {[%emt 0:00:14]} e6 {[%emt 0:00:31]} 11. O-O {[%emt 0:03:12]} Be7 {[%emt 0:01:45]} 12. Kh1 {[%emt 0:02:25]} O-O {[%emt 0:01:22]} 13. f4 {[%emt 0:02:37]} f6 {[%emt 0:00:23]} 14. exf6 {[%emt 0:05:18]} Bxf6 {[%emt 0:02:16]} 15. Be3 {[%emt 0:01:07]} Qd6 {[%emt 0:09:12]} 16. f5 {[%emt 0:07:23]} Rae8 {[%emt 0:06:11]} 17. fxe6 {[%emt 0:04:26]} Rxe6 {[%emt 0:02:12]} 18. Rf5 {[%emt 0:09:36]} Rfe8 {[%emt 0:07:09]} 19. Nxd5 {[%emt 0:06:49]} Nb4 {[%emt 0:03:35]} 20. Nxf6+ {[%emt 0:01:01]} gxf6 {[%emt 0:02:50]} 21. Qc4 {[%emt 0:00:51]} Qc6 {[%emt 0:03:58]} 22. Rc5 {[%emt 0:06:28]} Qe4 {[%emt 0:00:34]} 23. Rc8 {[%emt 0:02:47]} Rxc8 {[%emt 0:01:25]} 24. Qxc8+ {[%emt 0:00:01]} Kg7 $16 {[%emt 0:03:44]} (24... Re8 $14 25. Qc4+ Nd5) 25. Re1 {[%emt 0:02:57]} Kf7 {[%emt 0:00:52]} 26. Qc7+ {[%emt 0:01:39]} Ke8 {[%emt 0:04:19]} 27. Qc8+ {[%emt 0:00:39]} Kf7 {[%emt 0:00:17]} 28. Qc7+ {[%emt 0:03:40]} Re7 {[%emt 0:00:02]} 1/2-1/2

[Event "FIDE WAC U2000 2021"]
[Site "Rhodes"]
[Date "2021.10.22"]
[Round "6.5"]
[White "Celik, Berkay"]
[Black "Kovalskyi, Roman"]
[Result "1-0"]
[ECO "B23"]
[WhiteElo "1846"]
[BlackElo "1815"]
[Annotator "NA"]
[PlyCount "79"]
[EventDate "2021.10.17"]
[EventType "swiss"]
[EventCountry "GRE"]
[SourceTitle "playchess.com"]
[Source "ChessBase"]
[SourceQuality "1"]
[TimeControl "5400+30"]

1. e4 {[%emt 0:01:20]} c5 {[%emt 0:00:08]} 2. Nc3 {[%emt 0:00:05]} g6 {[%emt 0:00:12]} 3. Bc4 {[%emt 0:00:05]} Bg7 {[%emt 0:00:12]} 4. Qf3 {[%emt 0:00:04]} e6 {[%emt 0:00:09]} 5. Nb5 {[%emt 0:00:04]} d6 {[%emt 0:00:05]} 6. Qg3 {[%emt 0:00:02]} Be5 {[%emt 0:02:38]} 7. f4 {[%emt 0:00:50]} Bf6 {[%emt 0:00:18]} 8. Nxd6+ {[%emt 0:00:20]} Qxd6 {[%emt 0:01:13]} 9. e5 {[%emt 0:00:02]} Qd4 {[%emt 0:01:59]} 10. Bb5+ {[%emt 0:00:04]} Bd7 {[%emt 0:00:44]} 11. Ne2 {[%emt 0:00:17]} Qb4 {[%emt 0:03:03]} 12. Bxd7+ {[%emt 0:00:12]} Nxd7 {[%emt 0:00:07]} 13. exf6 {[%emt 0:00:04]} Ngxf6 {[%emt 0:00:14]} 14. b3 {[%emt 0:00:12]} O-O-O {[%emt 0:07:40]} 15. a3 {[%emt 0:00:29]} Qb6 {[%emt 0:00:53]} 16. Bb2 {[%emt 0:00:10]} Rhe8 {[%emt 0:00:37]} 17. d3 {[%emt 0:01:27]} Nd5 {[%emt 0:02:33]} 18. O-O {[%emt 0:00:48]} f5 {[%emt 0:08:35]} 19. Rfb1 {[%emt 0:02:06]} g5 {[%emt 0:06:31]} ({Black should try} 19... Qd6 $11) 20. fxg5 {[%emt 0:00:56]} ({Not} 20. Qxg5 Rg8 $17) 20... e5 {[%emt 0:00:35]} 21. Qf3 {[%emt 0:06:03]} e4 {[%emt 0:32:32]} 22. dxe4 $16 {[%emt 0:02:29]} ({Not} 22. Qxf5 exd3 23. Qxd5 (23. cxd3 $2 Rxe2 24. Qxd5 Ne5 $19 {[%mdl 64] Discovered Attack}) 23... dxc2 $15) 22... fxe4 {[%emt 0:01:23]} 23. Qg3 {[%emt 0:00:41]} Qa6 {[%emt 0:01:31]} (23... e3 $16 {was necessary.} 24. Rd1 Qe6) 24. c4 {[%emt 0:00:42]} Nc7 {[%emt 0:00:54]} 25. Rf1 {[%emt 0:00:29]} Rg8 {[%emt 0:02:21]} 26. Nf4 {[%emt 0:00:28]} Rde8 {[%emt 0:01:15]} 27. Qg4 {[%emt 0:00:38]} e3 {[%emt 0:07:29]} 28. Rad1 {[%emt 0:01:06]} Qc6 {[%emt 0:00:16]} 29. Rd3 {[%emt 0:00:49]} Re4 {[%emt 0:00:53]} 30. Qg3 {[%emt 0:05:59]} Rge8 {[%emt 0:01:54]} 31. Re1 {[%emt 0:01:54]} Ne6 {[%emt 0:00:16]} 32. Nd5 {[%emt 0:01:37]} e2 {[%emt 0:00:15]} 33. Nc3 {[%emt 0:03:14]} Re5 {[%emt 0:04:18]} 34. Rxe2 {[%emt 0:00:06]} Rxg5 {[%emt 0:00:33]} 35. Qxg5 {[%emt 0:00:15]} Nxg5 {[%emt 0:00:10]} 36. Rxe8+ {[%emt 0:00:01]} Kc7 {[%emt 0:00:10]} 37. Nd5+ {[%emt 0:00:01]} Kd6 {[%emt 0:00:12]} 38. Nb4+ {[%emt 0:00:02]} Kc7 {[%emt 0:00:16]} 39. Nxc6 {[%emt 0:00:01]} Nf3+ {[%emt 0:00:06]} 40. gxf3 {[%emt 0:00:03]} 1-0

[Event "FIDE WAC U2000 2021"]
[Site "Rhodes"]
[Date "2021.10.23"]
[Round "7.1"]
[White "Peter Anand, A."]
[Black "Hamad Bader"]
[Result "1-0"]
[ECO "A47"]
[WhiteElo "1787"]
[BlackElo "1756"]
[Annotator "NA RC"]
[PlyCount "107"]
[EventDate "2021.10.17"]
[EventType "swiss"]
[EventCountry "GRE"]
[SourceTitle "playchess.com"]
[Source "ChessBase"]
[SourceQuality "1"]
[TimeControl "5400+30"]

1. d4 {[%emt 0:00:06]} Nf6 {[%emt 0:00:11]} 2. Nf3 {[%emt 0:00:06]} e6 {[%emt 0:00:08]} 3. Bg5 {[%emt 0:00:26]} b6 {[%emt 0:00:32]} 4. e3 {[%emt 0:00:27]} Bb7 {[%emt 0:00:08]} 5. Be2 {[%emt 0:00:12]} c5 {[%emt 0:00:28]} 6. c3 {[%emt 0:00:08]} Be7 {[%emt 0:00:10]} 7. Nbd2 {[%emt 0:00:06]} cxd4 {[%emt 0:01:48]} 8. cxd4 {[%emt 0:00:21]} O-O {[%emt 0:02:24]} 9. O-O {[%emt 0:01:11]} d6 {[%emt 0:03:46]} 10. Rc1 {[%emt 0:05:36]} Nbd7 {[%emt 0:07:13]} 11. Qa4 {[%emt 0:09:17]} a6 {[%emt 0:02:23]} 12. Qb3 {[%emt 0:01:55]} b5 {[%emt 0:03:11]} 13. a4 {[%emt 0:03:02]} Bd5 {[%emt 0:02:23]} 14. Qb4 {[%emt 0:08:47]} a5 {[%emt 0:14:23]} 15. Qxb5 {[%emt 0:01:47]} Rb8 {[%emt 0:00:04]} 16. Qd3 {[%emt 0:03:15]} Rxb2 {[%emt 0:01:11]} 17. Rb1 {[%emt 0:01:07]} Rxb1 {[%emt 0:02:59]} 18. Rxb1 {[%emt 0:00:22]} h6 {[%emt 0:06:17]} 19. Bxf6 {[%emt 0:01:20]} Nxf6 {[%emt 0:00:45]} 20. Qc3 {[%emt 0:02:23]} Bxf3 {[%emt 0:08:29]} 21. Nxf3 {[%emt 0:06:04]} d5 {[%emt 0:00:26]} 22. Ne5 {[%emt 0:08:20]} Bb4 {[%emt 0:01:54]} 23. Qc2 {[%emt 0:01:15]} Ne4 {[%emt 0:08:49]} 24. Nc6 {[%emt 0:13:56]} Qd6 {[%emt 0:09:04]} 25. Bb5 {[%emt 0:00:51]} Kh8 {[%emt 0:08:27]} 26. Nxb4 axb4 {[%emt 0:00:30]} 27. Qb2 Nc3 {[%emt 0:00:30]} 28. Qxb4 Qxb4 {[%emt 0:00:30]} 29. Rxb4 Rb8 {[%emt 0:00:30]} 30. Rb3 Nxb5 {[%emt 0:00:30]} 31. Rxb5 Rc8 {[%emt 0:00:30]} 32. g3 Rc2 {[%emt 0:00:30]} 33. Rb7 Ra2 {[%emt 0:00:30]} 34. Ra7 Kh7 {[%emt 0:00:30]} 35. Kg2 Kg6 {[%emt 0:00:30]} 36. a5 Kf6 {[%emt 0:00:30]} 37. h4 g5 {[%emt 0:00:30]} 38. hxg5+ hxg5 {[%emt 0:00:30]} 39. g4 Kg6 {[%emt 0:00:30]} 40. Ra8 Kg7 {[%emt 0:00:30]} 41. a6 Kh7 {[%emt 0:00:30]} 42. Kf1 Kg6 {[%emt 0:00:30]} 43. Ke1 Kg7 {[%emt 0:00:30]} 44. f3 f5 {[%emt 0:00:30]} 45. Kd1 f4 {[%emt 0:00:30]} 46. exf4 gxf4 {[%emt 0:00:30]} 47. Kc1 Ra4 {[%emt 0:00:30]} 48. a7 Ra2 {[%emt 0:00:30]} 49. Kb1 Ra6 {[%emt 0:00:30]} 50. Kb2 Ra5 {[%emt 0:00:30]} 51. Kb3 Ra1 {[%emt 0:00:30]} 52. Kb4 Ra2 {[%emt 0:00:30]} 53. Kb5 Rb2+ {[%emt 0:00:30]} 54. Kc6 1-0

[Event "FIDE WAC U2000 2021"]
[Site "Rhodes"]
[Date "2021.10.23"]
[Round "7.2"]
[White "Celik, Berkay"]
[Black "Degrande, Marigje"]
[Result "1/2-1/2"]
[ECO "C06"]
[WhiteElo "1846"]
[BlackElo "1889"]
[Annotator "NA"]
[PlyCount "68"]
[EventDate "2021.10.17"]
[EventType "swiss"]
[EventCountry "GRE"]
[SourceTitle "playchess.com"]
[Source "ChessBase"]
[SourceQuality "1"]
[TimeControl "5400+30"]

1. e4 {[%emt 0:03:04]} e6 {[%emt 0:00:04]} 2. d4 {[%emt 0:01:50]} d5 {[%emt 0:00:04]} 3. Nd2 {[%emt 0:00:04]} Nf6 {[%emt 0:00:06]} 4. e5 {[%emt 0:02:32]} Nfd7 {[%emt 0:00:06]} 5. Bd3 {[%emt 0:00:19]} c5 {[%emt 0:00:09]} 6. c3 {[%emt 0:00:04]} Nc6 {[%emt 0:00:10]} 7. Ne2 {[%emt 0:00:06]} cxd4 {[%emt 0:00:46]} 8. cxd4 {[%emt 0:06:45]} f6 {[%emt 0:00:06]} 9. Nf4 {[%emt 0:00:20]} Nxd4 {[%emt 0:00:18]} 10. Qh5+ {[%emt 0:01:39]} Ke7 {[%emt 0:00:10]} 11. exf6+ {[%emt 0:06:31]} Nxf6 {[%emt 0:00:10]} 12. Ng6+ {[%emt 0:00:23]} hxg6 {[%emt 0:00:07]} 13. Qxh8 {[%emt 0:00:09]} Kf7 {[%emt 0:00:06]} 14. Qh4 {[%emt 0:00:35]} e5 {[%emt 0:00:22]} 15. Nf3 {[%emt 0:11:04]} Nxf3+ {[%emt 0:02:05]} 16. gxf3 {[%emt 0:00:02]} Bf5 {[%emt 0:34:35]} 17. Bxf5 {[%emt 0:07:14]} gxf5 {[%emt 0:01:30]} 18. Bg5 {[%emt 0:00:09]} Qa5+ {[%emt 0:01:36]} 19. Kf1 {[%emt 0:00:03]} Be7 {[%emt 0:05:03]} 20. Kg2 {[%emt 0:00:28]} Rc8 {[%emt 0:16:23]} 21. Rhc1 {[%emt 0:00:18]} Rc6 {[%emt 0:00:11]} 22. a3 {[%emt 0:00:41]} d4 {[%emt 0:03:41]} 23. Qh3 {[%emt 0:09:31]} e4 {[%emt 0:03:56]} 24. fxe4 {[%emt 0:02:54]} fxe4 {[%emt 0:00:35]} 25. Bxf6 {[%emt 0:00:07]} Rxf6 {[%emt 0:00:27]} 26. Qb3+ {[%emt 0:00:12]} Re6 {[%emt 0:01:48]} 27. Re1 {[%emt 0:06:52]} Qf5 {[%emt 0:02:28]} 28. Rac1 {[%emt 0:03:16]} Bh4 {[%emt 0:16:46]} 29. Rf1 d3 {[%emt 0:00:30]} 30. Rc8 Qf3+ {[%emt 0:00:30]} 31. Kg1 Qg4+ {[%emt 0:00:30]} 32. Kh1 Qf3+ {[%emt 0:00:30]} 33. Kg1 Qg4+ {[%emt 0:00:30]} 34. Kh1 Qf3+ {[%emt 0:00:30]} 1/2-1/2

[Event "FIDE WAC U2000 2021"]
[Site "Rhodes"]
[Date "2021.10.23"]
[Round "7.5"]
[White "Ehab, Mohamed"]
[Black "Hagevi, Vidar"]
[Result "1-0"]
[ECO "B22"]
[WhiteElo "1948"]
[BlackElo "1784"]
[Annotator "ChessBase"]
[PlyCount "74"]
[EventDate "2021.10.17"]
[EventType "swiss"]
[EventCountry "GRE"]
[SourceTitle "playchess.com"]
[Source "ChessBase"]
[SourceQuality "1"]
[TimeControl "5400+30"]

1. e4 {[%emt 0:02:13]} c5 {[%emt 0:00:10]} 2. Nf3 {[%emt 0:00:19]} e6 {[%emt 0:00:12]} 3. c3 {[%emt 0:00:06]} Nf6 {[%emt 0:01:06]} 4. e5 {[%emt 0:00:46]} Nd5 {[%emt 0:00:13]} 5. d4 {[%emt 0:01:31]} cxd4 {[%emt 0:00:27]} 6. cxd4 {[%emt 0:01:03]} Nc6 {[%emt 0:00:55]} 7. Bc4 {[%emt 0:01:10]} d6 {[%emt 0:04:11]} 8. O-O {[%emt 0:01:27]} dxe5 {[%emt 0:09:23]} 9. dxe5 {[%emt 0:04:21]} Be7 {[%emt 0:01:20]} 10. Qe2 {[%emt 0:02:59]} Qc7 {[%emt 0:05:21]} 11. Bxd5 {[%emt 0:03:20]} exd5 {[%emt 0:00:09]} 12. Nc3 {[%emt 0:00:11]} Be6 {[%emt 0:04:31]} 13. Nb5 {[%emt 0:04:10]} Qd8 {[%emt 0:07:28]} 14. Nfd4 {[%emt 0:01:09]} Nxd4 {[%emt 0:03:15]} 15. Nxd4 {[%emt 0:00:18]} O-O {[%emt 0:00:54]} 16. Be3 {[%emt 0:02:31]} Qd7 {[%emt 0:03:27]} 17. f4 {[%emt 0:02:12]} Bf5 {[%emt 0:09:05]} 18. Nxf5 {[%emt 0:14:56]} Qxf5 {[%emt 0:00:22]} 19. Rfd1 {[%emt 0:00:16]} Rfd8 {[%emt 0:01:34]} 20. Qd3 {[%emt 0:03:35]} Qe6 {[%emt 0:03:21]} 21. Bd4 {[%emt 0:00:26]} g6 {[%emt 0:03:24]} 22. Rf1 {[%emt 0:11:21]} f5 {[%emt 0:08:33]} 23. Rac1 {[%emt 0:07:39]} a6 {[%emt 0:01:10]} 24. Rc7 {[%emt 0:02:17]} Rdb8 {[%emt 0:05:10]} 25. Qb3 {[%emt 0:01:15]} b6 {[%emt 0:02:10]} 26. Rfc1 {[%emt 0:00:24]} Bc5 {[%emt 0:00:45]} 27. Bxc5 {[%emt 0:05:40]} bxc5 {[%emt 0:00:16]} 28. Qh3 {[%emt 0:00:09]} h5 {[%emt 0:01:10]} 29. R1xc5 {[%emt 0:00:12]} Rc8 30. Qc3 {[%emt 0:00:30]} Rxc7 31. Rxc7 {[%emt 0:00:30]} Qb6+ 32. Qc5 {[%emt 0:00:30]} Qxc5+ 33. Rxc5 {[%emt 0:00:30]} Rd8 34. Rc6 {[%emt 0:00:30]} Kf7 35. Rf6+ {[%emt 0:00:30]} Kg7 36. Rxa6 {[%emt 0:00:30]} d4 37. Kf2 {[%emt 0:00:30]} Rd6 1-0